[Event "85th Tata Steel Masters 2023"]
[Site "Wijk aan Zee"]
[Date "2023.01.16"]
[Round "3.5"]
[White "Erigaisi Arjun"]
[Black "Aronian, Levon"]
[Result "1/2-1/2"]
[ECO "E39"]
[WhiteElo "2722"]
[BlackElo "2735"]
[Annotator "TA"]
[PlyCount "122"]
[EventDate "2023.01.10"]
[EventType "tourn"]
[EventCountry "NED"]
[SourceTitle "playchess.com"]
[Source "ChessBase"]
[SourceQuality "1"]
[TimeControl "40/6000+30:30/3000+30:900+30"]

{[%evp 13,122,38,30,20,41,16,29,44,18,25,0,0,-14,-7,0,-16,-15,-27,0,-6,-10,-10,-10,-14,-7,-15,-23,-14,-10,-21,-20,-20,-22,-42,-31,-31,-31,-33,-31,-33,-39,-44,-33,-42,-50,-40,-49,-49,-49,-49,-52,-49,-49,-49,-49,-49,-49,-53,-55,-55,-55,-55,-56,-56,-56,-56,-56,-56,-56,-56,-56,-56,-62,-62,-20,-22,-52,-25,-8,-8,-8,-19,-19,-19,-19,-19,-19,-19,-25,-78,-78,-78,-78,-78,-78,-78,-11,-238,-238,-184,-78,-78,-78,-78,-78,-78,-78,-78,-19,-26,-26]} 1. d4 {[%emt 0:00:08]} Nf6 {[%emt 0:00:05]} 2. c4 {[%emt 0:00:05]} e6 {[%emt 0:00:06]} 3. Nc3 {[%emt 0:00:04]} Bb4 {[%emt 0:00:05]} 4. Qc2 {[%emt 0:00:05]} c5 {[%emt 0:00:22]} 5. dxc5 {[%emt 0:00:46]} O-O {[%emt 0:00:06]} 6. a3 {[%emt 0:00:16]} Bxc5 {[%emt 0:00:05]} 7. Nf3 {[%emt 0:00:06]} d5 {[%emt 0:00:12]} 8. Bf4 {[%emt 0:00:30] E39: Nimzo-Indian: Classical: 4...c5 5 dxc5 0-0.} dxc4 {[%emt 0:07:28][%cal Ob7b5]} 9. e3 {[%emt 0:00:54]} a6 {[%emt 0:00:04]} 10. Bxc4 {[%emt 0:01:54] White has an edge.} b5 {[%emt 0:01:57]} 11. Be2 {[%emt 0:09:28][%cal Oc3b5]} Nbd7 {[%emt 0:13:41]} 12. O-O {[%emt 0:02:55]} Bb7 {[%emt 0:01:42] Wards off Ne4} 13. Rfd1 {[%emt 0:12:41] [#]} Rc8 $146 {[%emt 0:01:23]} ({Predecessor:} 13... Qb6 14. Ng5 h6 15. Nge4 Be7 16. Nd6 e5 17. Nf5 Qe6 18. Nxe7+ Qxe7 19. Bg3 Nc5 {1-0 Hochgraefe,M (2352)-Schmidt,H (2358) Oberliga Nord N 1516 2015 (9.1)}) 14. Rd2 {[%emt 0:32:47]} Qb6 {[%emt 0:04:47]} 15. Rad1 {[%emt 0:05:06]} Rfd8 {[%emt 0:00:23]} 16. Qb1 {[%emt 0:03:05]} h6 {[%emt 0:04:58]} 17. Bg3 {[%emt 0:01:17]} Be7 {[%emt 0:04:59]} 18. Ne5 {[%emt 0:03:31]} Nc5 {[%emt 0:11:25]} (18... Nxe5 {simplifies} 19. Rxd8+ Rxd8 20. Bxe5 Rc8) 19. Bf3 {[%emt 0:00:16]} Rxd2 {[%emt 0:01:55]} 20. Rxd2 {[%emt 0:00:06]} Nce4 {[%emt 0:15:06]} 21. Nxe4 {[%emt 0:00:30]} Bxe4 {[%emt 0:00:14]} 22. Bxe4 {[%emt 0:05:37]} Nxe4 {[%emt 0:01:11]} 23. Rd1 {[%emt 0:00:07]} Nxg3 {[%emt 0:01:20]} 24. hxg3 {[%emt 0:00:05]} Qc7 {[%emt 0:00:57]} 25. Nd3 {[%emt 0:01:44]} Qc2 {[%emt 0:01:42]} 26. Rc1 {[%emt 0:06:14]} Qxb1 {[%emt 0:00:11]} 27. Rxb1 $15 {[%emt 0:00:03][%mdl 4096] Endgame KRB-KRN} Rd8 {[%emt 0:05:40]} 28. Rd1 {[%emt 0:02:03]} e5 {[%emt 0:11:59]} 29. f3 {[%emt 0:00:40]} f5 {[%emt 0:00:12]} 30. Kf1 {[%emt 0:01:18]} e4 {[%emt 0:04:24]} 31. fxe4 {[%emt 0:01:02]} fxe4 {[%emt 0:00:06]} 32. Nf2 {[%emt 0:00:05]} Rxd1+ {[%emt 0:03:26]} 33. Nxd1 {[%emt 0:00:06] KB-KN} Kf7 {[%emt 0:00:36]} 34. Nf2 {[%emt 0:06:44]} Bf6 {[%emt 0:02:06]} 35. b3 {[%emt 0:00:07][%cal Of1e2]} Be7 {[%emt 0:00:29]} 36. a4 {[%emt 0:01:28]} bxa4 {[%emt 0:00:24]} 37. bxa4 {[%emt 0:00:04]} Ke6 $1 {[%emt 0:00:03] [#] ...Kd5 is the strong threat.} 38. Nxe4 {[%emt 0:00:06]} Kd5 $1 {[%emt 0:00:02]} 39. Nd2 {[%emt 0:00:54]} Kc5 $1 {[%emt 0:00:05]} 40. Ke2 {[%emt 0:00:05]} Kb4 {[%emt 0:00:04][%cal Oa6a5]} 41. Kd3 $1 {[%emt 0:50:05]} Kxa4 {[%emt 0:50:05]} 42. Kc4 $1 {[%emt 0:00:00]} Bg5 $1 {[%emt 0:00:00]} 43. Nf1 {[%emt 0:00:00]} Ka5 {[%emt 0:00:00]} 44. e4 {[%emt 0:00:00]} Kb6 {[%emt 0:00:00]} 45. Nh2 $1 {[%emt 0:00:00]} h5 {[%emt 0:00:00]} 46. Nf3 {[%emt 0:00:00]} Be7 {[%emt 0:00:00]} 47. e5 {[%emt 0:00:00]} Kc6 {[%emt 0:00:00]} 48. Nd4+ {[%emt 0:00:00]} Kd7 {[%emt 0:00:00]} 49. e6+ {[%emt 0:00:00]} Kc7 {[%emt 0:00:00]} 50. Kd5 {[%emt 0:00:00]} a5 {[%emt 0:00:00] aiming for ...a4.} 51. Nb5+ {[%emt 0:00:00]} (51. g4 $11) 51... Kd8 $17 {[%emt 0:00:00]} 52. Nc3 {[%emt 0:00:00]} Bb4 {[%emt 0:00:00]} 53. Na4 {[%emt 0:00:00]} Ke7 {[%emt 0:00:00] Strongly threatening ...Kf6.} 54. Nb6 {[%emt 0:03:02]} Kf6 {[%emt 0:00:00]} ({Black should try} 54... Be1 $17 55. Nc8+ Kf8) 55. g4 {[%emt 0:07:10]} hxg4 $19 {[%emt 0:00:00]} 56. Nd7+ {[%emt 0:00:05] [#]} Ke7 {[%emt 0:00:00]} (56... Kg5 $1 $19 {has better winning chances. White must now prevent ...Be7.} 57. Nc5 Kg6) 57. Nb6 $17 {[%emt 0:00:10]} Be1 {[%emt 0:00:00]} 58. Ke5 {[%emt 0:02:52]} Bg3+ {[%emt 0:00:00]} 59. Kd5 {[%emt 0:01:03]} Bh4 {[%emt 0:00:00]} 60. Ke5 {[%emt 0:01:49]} Kd8 {[%emt 0:00:00]} ({Better is} 60... Bf6+ $17 61. Kd5 Bh4 62. Nc8+ Kf8) 61. Nd5 $11 {[%emt 0:04:33]} a4 {[%emt 0:05:37] Weighted Error Value: White=0.10 (very precise) /Black=0.09 (flawless)} 1/2-1/2

[Event "85th Tata Steel Masters 2023"]
[Site "Wijk aan Zee"]
[Date "2023.01.16"]
[Round "3.6"]
[White "Rapport, Richard"]
[Black "So, Wesley"]
[Result "1/2-1/2"]
[ECO "B14"]
[WhiteElo "2740"]
[BlackElo "2760"]
[Annotator "TA"]
[PlyCount "50"]
[EventDate "2023.01.10"]
[EventType "tourn"]
[EventCountry "NED"]
[SourceTitle "playchess.com"]
[Source "ChessBase"]
[SourceQuality "1"]
[TimeControl "40/6000+30:30/3000+30:900+30"]

{[%evp 17,50,21,17,16,22,13,12,16,15,11,8,13,15,7,7,12,9,6,11,11,12,12,17,12,12,0,14,0,0,0,0,0,0,0,0]} 1. c4 {[%emt 0:02:00]} c5 {[%emt 0:00:48]} 2. Nc3 {[%emt 0:01:27]} g6 {[%emt 0:01:57]} 3. e3 {[%emt 0:01:14]} Nf6 {[%emt 0:02:41]} 4. d4 {[%emt 0:11:50]} cxd4 {[%emt 0:00:20]} 5. exd4 {[%emt 0:00:09]} d5 {[%emt 0:00:09]} 6. Qb3 {[%emt 0:00:31]} Bg7 {[%emt 0:00:13]} 7. cxd5 {[%emt 0:00:07]} O-O {[%emt 0:00:09]} 8. Be2 {[%emt 0:00:31]} Na6 {[%emt 0:16:51]} 9. Bf3 {[%emt 0:03:21]} Qb6 {[%emt 0:02:54] The position is equal.} 10. Nge2 {[%emt 0:01:59] B14: Caro-Kann: Panov-Botvinnik Attack with 5...e6 and 5...g6.} Qxb3 {[%emt 0:09:49]} 11. axb3 {[%emt 0:00:16]} Rd8 {[%emt 0:00:55]} 12. Ra5 {[%emt 0:09:09]} Bg4 {[%emt 0:10:34]} 13. Bxg4 {[%emt 0:16:01]} Nxg4 {[%emt 0:00:06]} 14. O-O {[%emt 0:01:10]} Nf6 {[%emt 0:08:08] [#]} 15. Bf4 $146 {[%emt 0:10:23]} ({Predecessor:} 15. Bg5 Nc7 16. Bxf6 Bxf6 17. Rc5 Rd7 18. Ra1 b6 19. Rc6 Nxd5 20. Nxd5 Rxd5 21. Rxb6 axb6 22. Rxa8+ {½-½ Belous,V (2524)-Mishra,A (2357) Charlotte CCCSA Winter GM 2021 (1)}) 15... Nb4 {[%emt 0:04:00][%cal Rf6d5] [#]} 16. d6 $1 {[%emt 0:01:49]} e6 {[%emt 0:01:36]} (16... a6 17. dxe7) 17. Rb5 {[%emt 0:02:19]} Nbd5 {[%emt 0:00:07]} 18. Be5 {[%emt 0:09:49]} b6 {[%emt 0:01:18]} 19. Nxd5 {[%emt 0:03:01]} Nxd5 {[%emt 0:00:06]} 20. Nc3 $36 {[%emt 0:00:09][%mdl 2048] White has the initiative.} Nf6 {[%emt 0:05:44][%cal Bd5f6,Bf6d7,Bd7b8][%mdl 32]} 21. Ra1 {[%emt 0:07:22]} Nd7 {[%emt 0:13:36]} 22. Ra6 {[%emt 0:14:44]} Nb8 {[%emt 0:05:17]} 23. Ra4 {[%emt 0:00:05] Bxg7 would be deadly.} Nd7 {[%emt 0:00:12]} 24. Ra6 {[%emt 0:00:03]} Nb8 {[%emt 0:00:11]} 25. Ra4 {[%emt 0:00:08] And now Bxg7 would win.} Nd7 {[%emt 0:00:05] A rather calm draw.   Weighted Error Value: White=0.02 (flawless) /Black=0.01 (flawless)} 1/2-1/2

[Event "85th Tata Steel Masters 2023"]
[Site "Wijk aan Zee"]
[Date "2023.01.16"]
[Round "3.7"]
[White "Praggnanandhaa R"]
[Black "Keymer, Vincent"]
[Result "1/2-1/2"]
[ECO "E32"]
[WhiteElo "2684"]
[BlackElo "2696"]
[Annotator "TA"]
[PlyCount "156"]
[EventDate "2023.01.10"]
[EventType "tourn"]
[EventCountry "NED"]
[SourceTitle "playchess.com"]
[Source "ChessBase"]
[SourceQuality "1"]
[TimeControl "40/6000+30:30/3000+30:900+30"]

{[%evp 24,156,65,66,67,57,67,59,65,66,52,68,87,84,75,25,61,10,58,78,87,98,101,100,104,43,67,91,113,122,120,120,121,120,120,78,78,81,85,82,71,59,90,93,77,88,85,83,103,71,76,76,77,72,79,50,57,27,26,26,22,36,36,24,24,13,24,24,35,16,65,26,25,8,8,8,8,8,8,8,8,8,8,8,65,65,65,8,8,8,8,8,8,8,8,8,8,8,8,8,8,8,8,8,8,8,8,8,8,8,8,8,8,8,8,8,8,8,8,0,8,8,8,8,8,8,8,8,8,8,8,8,8,8,8]} 1. d4 {[%emt 0:00:36]} Nf6 {[%emt 0:00:05]} 2. c4 {[%emt 0:00:06]} e6 {[%emt 0:00:02]} 3. Nc3 {[%emt 0:00:06]} Bb4 {[%emt 0:00:04]} 4. Qc2 {[%emt 0:00:06]} O-O {[%emt 0:03:45]} 5. a3 {[%emt 0:00:44]} Bxc3+ {[%emt 0:00:04]} 6. Qxc3 {[%emt 0:00:08]} d6 {[%emt 0:04:25]} 7. f3 {[%emt 0:00:32]} b6 {[%emt 0:06:25]} 8. e4 {[%emt 0:00:36]} Bb7 {[%emt 0:01:56]} 9. Ne2 {[%emt 0:11:57]} c5 {[%emt 0:05:03]} 10. d5 {[%emt 0:09:11]} exd5 {[%emt 0:17:32]} 11. exd5 {[%emt 0:08:11]} Re8 {[%emt 0:06:43]} 12. a4 {[%emt 0:06:34]} Nbd7 {[%emt 0:04:06]} 13. Kf2 $1 {[%emt 0:03:24]} Ne5 {[%emt 0:07:14]} 14. Ng3 $1 {[%emt 0:04:38]} a6 {[%emt 0:00:37]} 15. Be2 {[%emt 0:06:35]} b5 {[%emt 0:00:40]} 16. b3 {[%emt 0:02:26]} bxc4 {[%emt 0:06:02]} 17. bxc4 {[%emt 0:01:13]} a5 {[%emt 0:00:39]} 18. Re1 {[%emt 0:05:33]} Ba6 {[%emt 0:02:37]} 19. Rb1 {[%emt 0:03:25]} ({White should try} 19. Bd2 $16) 19... Nfd7 {[%emt 0:03:13]} 20. Bd2 {[%emt 0:12:07]} (20. Kg1 $14) 20... Qh4 {[%emt 0:13:13]} (20... Nb6 $11) 21. Rec1 $1 $14 {[%emt 0:06:59]} Rab8 {[%emt 0:06:49]} (21... Qxh2 $2 22. Rh1 $18 (22. Qxa5 $2 Bxc4 $19) (22. Qxa5 $2 Bxc4 $19 {[%mdl 64] Discovered Attack})) 22. Rxb8 {[%emt 0:01:11]} Rxb8 {[%emt 0:00:04]} 23. Kg1 {[%emt 0:03:41]} ({Weaker is} 23. Qxa5 Bxc4 24. Bxc4 Nxc4 $17) 23... Qd4+ {[%emt 0:01:48]} 24. Qxd4 {[%emt 0:01:18]} cxd4 {[%emt 0:00:04]} 25. f4 {[%emt 0:01:33]} d3 {[%emt 0:03:33]} 26. fxe5 {[%emt 0:00:32]} dxe2 {[%emt 0:00:04]} 27. exd6 {[%emt 0:00:55]} Rc8 {[%emt 0:03:23]} 28. Nxe2 {[%emt 0:04:01]} Rxc4 {[%emt 0:00:04]} 29. Rxc4 {[%emt 0:02:11]} Bxc4 {[%emt 0:00:04]} 30. Nd4 {[%emt 0:00:34]} Kf8 {[%emt 0:01:02]} 31. Bxa5 {[%emt 0:00:32]} Ke8 {[%emt 0:02:59]} 32. Bd2 {[%emt 0:07:25]} Nc5 {[%emt 0:02:51]} 33. a5 {[%emt 0:01:35]} Bxd5 {[%emt 0:02:28]} 34. Bb4 {[%emt 0:01:07]} Na6 {[%emt 0:06:45]} 35. Ba3 {[%emt 0:00:36]} Kd7 {[%emt 0:00:38]} 36. Kf2 {[%emt 0:01:12]} Nb8 {[%emt 0:00:28]} 37. Nf5 {[%emt 0:03:23]} g6 {[%emt 0:00:48]} 38. Ne7 {[%emt 0:00:46]} Bb7 {[%emt 0:00:28]} 39. g3 {[%emt 0:01:09]} Nc6 {[%emt 0:00:40]} 40. Nd5 {[%emt 0:01:09]} Nxa5 {[%emt 0:00:30]} 41. Nf6+ {[%emt 0:04:00]} Kd8 {[%emt 0:13:41]} 42. Nxh7 {[%emt 0:05:23]} Nc4 {[%emt 0:01:09]} 43. Bb4 {[%emt 0:04:16]} Ne5 {[%emt 0:02:31]} 44. Ke3 {[%emt 0:03:59]} Kd7 {[%emt 0:05:08]} 45. Ng5 {[%emt 0:06:04]} Ba8 {[%emt 0:22:32]} 46. h4 {[%emt 0:13:20]} Nc4+ {[%emt 0:01:38]} (46... Bh1 $11 {should be considered.}) 47. Kd4 {[%emt 0:03:43]} (47. Kf4 $5 {[%cal Rg5f7]} Nb6 48. Bc5 (48. Nxf7 Nd5+ 49. Kg5 Nxb4 $11) 48... Nd5+ 49. Ke4 $16) 47... Nxd6 {[%emt 0:00:21]} 48. Bxd6 {[%emt 0:00:27]} (48. Ke5 $5 {[%cal Rb4d6]} Nf5 49. Be1 $11 (49. Nxf7 Nxg3 50. Nh8 Nf5 $11)) 48... Kxd6 {[%emt 0:00:04]} 49. Nxf7+ {[%emt 0:00:05]} Ke6 {[%emt 0:00:04]} 50. Nh6 {[%emt 0:01:20]} Bb7 {[%emt 0:00:32]} 51. Ke3 {[%emt 0:01:31]} Ke5 $1 {[%emt 0:00:47]} 52. Ng4+ {[%emt 0:00:49]} Kf5 {[%emt 0:00:05]} 53. Nh2 {[%emt 0:00:05]} (53. Nf2 $5 {[%cal Rg3g4]}) 53... Bc8 {[%emt 0:05:23]} (53... g5 $1 $11) 54. g4+ $1 $14 {[%emt 0:01:27]} Kf6 {[%emt 0:00:03]} 55. Kf3 {[%emt 0:01:53]} ({Better is} 55. Kf4 $1 $14) 55... g5 $11 {[%emt 0:02:07]} 56. h5 {[%emt 0:00:06]} Kg7 {[%emt 0:00:27]} 57. Kg3 {[%emt 0:01:31]} Kh6 {[%emt 0:00:18]} 58. Nf3 {[%emt 0:00:07]} Be6 {[%emt 0:00:43]} 59. Nd4 {[%emt 0:00:29]} Bd7 {[%emt 0:00:04]} 60. Kf3 {[%emt 0:00:11]} Bc8 {[%emt 0:00:24]} 61. Nb5 {[%emt 0:00:06]} (61. Nc2 $5) 61... Bb7+ {[%emt 0:00:59]} 62. Kf2 {[%emt 0:00:32]} Bc8 {[%emt 0:00:05]} 63. Kg3 {[%emt 0:00:08]} Bd7 {[%emt 0:00:43]} 64. Nd6 {[%emt 0:00:07]} Be6 {[%emt 0:00:07]} 65. Kf3 {[%emt 0:00:10]} Bd5+ {[%emt 0:00:05]} 66. Kf2 {[%emt 0:00:14]} Be6 {[%emt 0:00:35]} 67. Kg3 {[%emt 0:00:07]} Kg7 {[%emt 0:00:16]} 68. Nf5+ {[%emt 0:00:53]} Kf6 {[%emt 0:00:32]} 69. Nd4 $1 {[%emt 0:03:15]} Bc8 {[%emt 0:00:27]} 70. Nf3 {[%emt 0:00:28]} Be6 {[%emt 0:00:27]} 71. Nd4 {[%emt 0:16:02]} Bc8 {[%emt 0:15:05]} 72. Nc2 {[%emt 0:00:04]} Be6 {[%emt 0:01:09]} 73. Kf3 {[%emt 0:00:38]} Bd5+ {[%emt 0:00:14]} 74. Kf2 $1 {[%emt 0:00:55]} Be6 {[%emt 0:00:33]} 75. Kg3 {[%emt 0:00:05]} Kf7 {[%emt 0:01:49]} 76. Ne3 {[%emt 0:01:05]} Kg7 {[%emt 0:00:07]} 77. Kf3 {[%emt 0:00:30]} Kh6 {[%emt 0:00:06]} 78. Ke4 {[%emt 0:00:22]} Bxg4 {[%emt 0:00:06]} 1/2-1/2

[Event "85th Tata Steel Masters 2023"]
[Site "Wijk aan Zee"]
[Date "2023.01.20"]
[Round "6.1"]
[White "So, Wesley"]
[Black "Keymer, Vincent"]
[Result "1-0"]
[ECO "C88"]
[WhiteElo "2760"]
[BlackElo "2696"]
[Annotator "TA"]
[PlyCount "101"]
[EventDate "2023.01.10"]
[EventType "tourn"]
[EventCountry "NED"]
[SourceTitle "playchess.com"]
[Source "ChessBase"]
[SourceQuality "1"]
[TimeControl "40/6000+30:30/3000+30:900+30"]

{[%evp 16,101,19,16,22,25,37,28,22,30,22,20,25,16,16,19,23,21,20,23,20,10,37,0,0,0,0,0,3,0,0,0,21,29,75,71,71,77,74,75,62,75,61,64,70,60,70,0,4,2,2,2,125,119,347,347,347,347,347,347,345,354,348,349,347,332,514,406,441,424,681,647,664,569,529,408,1045,815,1089,387,29957,29953,29957,29956,12809,12039,5442,5093]} 1. e4 {[%emt 0:00:17]} e5 {[%emt 0:00:04]} 2. Nf3 {[%emt 0:00:17]} Nc6 {[%emt 0:00:04]} 3. Bb5 {[%emt 0:01:03]} a6 {[%emt 0:00:06]} 4. Ba4 {[%emt 0:00:16]} Nf6 {[%emt 0:00:06]} 5. O-O {[%emt 0:00:12]} Be7 {[%emt 0:00:04]} 6. Re1 {[%emt 0:02:41]} b5 {[%emt 0:00:05]} 7. Bb3 {[%emt 0:00:05]} O-O {[%emt 0:00:05]} 8. a4 {[%emt 0:04:52]} b4 {[%emt 0:00:08]} 9. a5 {[%emt 0:01:37] 9.d4 gains popularity.} Rb8 {[%emt 0:00:51] C88: Closed Ruy Lopez: Anti-Marshall Systems.} 10. d4 {[%emt 0:06:33]} Nxd4 {[%emt 0:00:12]} 11. Nxd4 {[%emt 0:01:35]} exd4 {[%emt 0:00:05] White has an edge.} 12. e5 {[%emt 0:00:05]} Ne8 {[%emt 0:00:03]} 13. Qxd4 {[%emt 0:00:05] [#]} Rb5 $146 {[%emt 0:00:03]} ({Predecessor:} 13... d6 14. Nd2 c5 15. Qd3 Bb7 16. exd6 Nxd6 17. Nc4 Nxc4 18. Qxc4 Qd7 19. Ba4 Qc7 {½-½ Martynov,A (2375)-Pecka,J (2436) Sanchez Memorial A2 email 5th 2018}) 14. Bc4 {[%emt 0:15:14]} c5 {[%emt 0:00:14]} 15. Qd3 {[%emt 0:00:05]} Rxa5 {[%emt 0:00:04]} 16. Rxa5 {[%emt 0:00:04]} Qxa5 {[%emt 0:00:06]} 17. Nd2 {[%emt 0:00:03]} Qc7 {[%emt 0:01:25]} 18. Nf3 {[%emt 0:08:37][%mdl 1024] White has compensation.} (18. b3 {simplifies} Bb7 19. Bxa6 Bxa6 20. Qxa6 d5 21. exd6 Nxd6 22. Nf3) 18... h6 {[%emt 0:00:51] Repels Ng5} 19. Bf4 {[%emt 0:17:31]} Qc6 {[%emt 0:22:40]} 20. Bd5 {[%emt 0:02:45]} Qb5 {[%emt 0:12:01]} 21. Qf5 {[%emt 0:05:33][%cal Of4h6] And now Bxh6! would win.} Bb7 {[%emt 0:03:06]} 22. Bxb7 {[%emt 0:09:50]} Qxb7 {[%emt 0:00:05]} 23. Rd1 {[%emt 0:00:07] Prevents Qd5.} Nc7 {[%emt 0:02:07]} 24. Rxd7 {[%emt 0:00:39]} (24. Qxd7 $2 Rd8 25. Qxd8+ Bxd8 26. Rxd8+ Kh7 $19) 24... Rd8 {[%emt 0:22:34]} 25. h4 $36 {[%emt 0:07:30][%mdl 2048] White is on the roll. White has more active pieces.} (25. Rxe7 $2 {leads to mate.} Rd1+) ({And not} 25. e6 Nxe6 26. Rd2 Nxf4 27. Qxf4 Rxd2 28. Nxd2 Qd5 $17) 25... g6 {[%emt 0:18:33]} 26. Qd3 {[%emt 0:07:31]} Qc8 {[%emt 0:00:05]} 27. Rxd8+ {[%emt 0:00:08]} Qxd8 {[%emt 0:00:05]} 28. Qxd8+ {[%emt 0:02:38]} Bxd8 {[%emt 0:00:04]} 29. Bxh6 $16 {[%emt 0:00:03][%mdl 4096] Endgame KBN-KBN} a5 {[%emt 0:01:01]} 30. b3 {[%emt 0:04:50][%cal Bb2b3,Bb3a4][%mdl 32]} Nb5 {[%emt 0:00:17]} 31. Bc1 {[%emt 0:00:49]} (31. Kf1 $14) 31... Na3 {[%emt 0:05:23]} 32. c4 {[%emt 0:03:07]} a4 {[%emt 0:01:52]} 33. g3 {[%emt 0:04:57]} Nb1 {[%emt 0:11:30]} (33... f6 $11) 34. bxa4 {[%emt 0:00:02] Bb2 would be deadly.} b3 $2 {[%emt 0:00:22] A mistake that costs the game.} (34... Nc3 $16 {is a better defense.}) 35. Kf1 $18 {[%emt 0:00:49]} Ba5 {[%emt 0:00:29]} 36. Bb2 {[%emt 0:01:59]} Nc3 {[%emt 0:08:32]} 37. Nd2 {[%emt 0:00:12]} Nxa4 {[%emt 0:00:05]} 38. Nxb3 {[%emt 0:00:03]} Bb4 {[%emt 0:00:05]} 39. Bc1 {[%emt 0:00:51]} Nb6 {[%emt 0:00:04] [#]} 40. Nd2 {[%emt 0:00:35]} Bxd2 {[%emt 0:03:51]} (40... Bc3 {was necessary.} 41. f4 f5 42. exf6 Kf7) 41. Bxd2 {[%emt 0:50:18]} Nxc4 {[%emt 0:50:03] KB-KN} 42. Bc3 {[%emt 0:02:49] aiming for Ke2.} Kf8 {[%emt 0:00:00]} (42... Na3 $142 43. Ke2 c4) 43. Ke2 {[%emt 0:00:00]} Ke7 {[%emt 0:00:00]} 44. Kd3 {[%emt 0:00:00]} Nb6 {[%emt 0:00:00]} 45. Ke4 {[%emt 0:00:00] f4 is the strong threat.} Ke6 {[%emt 0:00:00]} (45... Na4 $142) 46. g4 {[%emt 0:00:00]} Na4 {[%emt 0:00:00]} 47. Ba1 {[%emt 0:00:00] Strongly threatening h5.} c4 $2 {[%emt 0:00:00]} (47... Nb6 $18 48. h5 f5+ 49. exf6 gxh5 50. gxh5 Nd7) 48. Bd4 {[%emt 0:00:00]} c3 {[%emt 0:00:00]} 49. Kd3 {[%emt 0:00:00]} Kd5 {[%emt 0:00:00]} 50. h5 {[%emt 0:00:00]} c2 {[%emt 0:00:00] [#]} 51. Kxc2 $1 {[%emt 0:00:00] Weighted Error Value: White=0.06 (flawless) /Black=0.49} 1-0

[Event "85th Tata Steel Masters 2023"]
[Site "Wijk aan Zee"]
[Date "2023.01.20"]
[Round "6.2"]
[White "Ding, Liren"]
[Black "Aronian, Levon"]
[Result "1/2-1/2"]
[ECO "C54"]
[WhiteElo "2811"]
[BlackElo "2735"]
[Annotator "TA"]
[PlyCount "95"]
[EventDate "2023.01.10"]
[EventType "tourn"]
[EventCountry "NED"]
[SourceTitle "playchess.com"]
[Source "ChessBase"]
[SourceQuality "1"]
[TimeControl "40/6000+30:30/3000+30:900+30"]

{[%evp 13,95,8,15,14,33,4,14,7,10,10,20,18,13,10,10,25,1,0,7,0,0,0,31,46,21,28,53,55,79,87,77,11,14,17,16,19,11,30,10,15,16,21,18,0,0,0,0,0,0,0,0,0,0,0,6,0,0,0,0,0,0,0,0,0,68,32,58,0,0,0,0,0,0,0,0,0,0,0,0,0,0,0,0,0]} 1. e4 {[%emt 0:00:11]} e5 {[%emt 0:00:05]} 2. Nf3 {[%emt 0:00:03]} Nc6 {[%emt 0:00:07]} 3. Bc4 {[%emt 0:00:04]} Nf6 {[%emt 0:00:09]} 4. d3 {[%emt 0:00:03]} Bc5 {[%emt 0:01:49]} 5. O-O {[%emt 0:00:07]} O-O {[%emt 0:00:07]} 6. h3 {[%emt 0:00:03]} d6 {[%emt 0:02:12]} 7. c3 {[%emt 0:01:21]} Bb6 {[%emt 0:00:30]} 8. Re1 {[%emt 0:12:25] C54: Giuoco Piano: 4 c3 Nf6, main lines with 5 d4 and 5 d3.} Ne7 {[%emt 0:00:19]} 9. d4 $1 {[%emt 0:02:06][%mdl 4] is more profitable than 9.Nbd2 at the moment.} exd4 {[%emt 0:01:50]} 10. cxd4 {[%emt 0:01:27]} d5 {[%emt 0:00:04]} 11. exd5 {[%emt 0:00:33] [#]} h6 $146 {[%emt 0:00:04]} ({Predecessor:} 11... Nexd5 12. Bg5 h6 13. Bh4 Be6 14. Nbd2 c6 15. Nb3 Nf4 16. Bxe6 Nxe6 17. Qc2 Re8 {½-½ Valinova,J (2391)-Kazmin,A Champion's League 2019/B2 email [4]}) 12. a4 {[%emt 0:03:08] a5 is the strong threat.} Ba5 {[%emt 0:08:37]} 13. Nc3 {[%emt 0:11:58]} Nexd5 {[%emt 0:01:34] [#]} 14. Nxd5 {[%emt 0:00:25]} Nxd5 {[%emt 0:00:08]} 15. Bd2 {[%emt 0:00:02]} (15. Re5 $5 c6 $8 16. Qb3 $11) 15... Bxd2 {[%emt 0:09:41]} 16. Qxd2 {[%emt 0:00:07]} Be6 {[%emt 0:06:07]} 17. a5 {[%emt 0:04:28]} a6 {[%emt 0:04:53]} 18. Ne5 {[%emt 0:04:20]} Re8 {[%emt 0:00:43]} 19. Nd3 {[%emt 0:07:22]} Qf6 {[%emt 0:16:48]} 20. Re5 {[%emt 0:06:50]} Ne7 {[%emt 0:09:06][%cal Bd5e7,Be7f5,Bf5d6][%mdl 32]} 21. Bxe6 {[%emt 0:05:52]} fxe6 {[%emt 0:00:02]} 22. Qe3 {[%emt 0:05:39] White is more active.} ({Better is} 22. Nc5 $16) 22... Nf5 $1 $11 {[%emt 0:05:57]} 23. Qe4 {[%emt 0:02:36]} Rad8 $1 {[%emt 0:02:36]} 24. Ra4 {[%emt 0:02:44]} ({Don't play} 24. Qxb7 Rxd4 25. Qc6 (25. Qxa6 Rxd3 $19 {[%mdl 64] Remove Defender}) 25... Kf7 $17) 24... Nd6 {[%emt 0:09:58]} 25. Qe2 {[%emt 0:07:01]} Nf7 {[%emt 0:13:35]} 26. Re4 {[%emt 0:00:07]} Nd6 {[%emt 0:00:51]} 27. Rf4 {[%emt 0:08:53]} Qg5 {[%emt 0:00:05]} 28. Rg4 {[%emt 0:00:03]} Qb5 {[%emt 0:00:50]} 29. Qc2 {[%emt 0:00:14][%cal Oc2c7]} Re7 {[%emt 0:05:18]} 30. b3 {[%emt 0:10:42]} Qf5 {[%emt 0:02:15]} 31. Rf4 {[%emt 0:01:39]} Qg6 {[%emt 0:02:21]} 32. Rg4 {[%emt 0:05:07]} Qf5 {[%emt 0:00:07]} 33. Rf4 {[%emt 0:00:02]} Qg6 {[%emt 0:00:05]} 34. Qe2 {[%emt 0:01:25]} Qg5 {[%emt 0:03:45]} 35. h4 {[%emt 0:00:14]} Qb5 {[%emt 0:01:04]} 36. Qc2 {[%emt 0:00:04]} Nf5 {[%emt 0:03:10]} 37. Qc3 {[%emt 0:06:41]} Rd5 {[%emt 0:01:04]} 38. h5 {[%emt 0:00:36]} Red7 {[%emt 0:00:55]} (38... Nd6 $11) 39. g4 {[%emt 0:00:34]} (39. Re4 $5 {[%cal Rd3f4]}) 39... Ne7 {[%emt 0:00:30]} 40. Nc5 {[%emt 0:01:02]} ({Reject} 40. Ne5 Rxe5 41. dxe5 Nd5 $15) (40. Re4 $14) 40... e5 $1 {[%emt 0:00:14] The position is equal.} 41. Nxd7 {[%emt 0:05:49] [#] Intending Rf8+ and mate.} exf4 {[%emt 0:02:59]} 42. Ne5 {[%emt 0:00:03]} Qe2 {[%emt 0:04:24][%cal Oc7c5]} 43. Qxc7 {[%emt 0:08:36]} Qe1+ {[%emt 0:00:36]} 44. Kg2 {[%emt 0:00:02]} Qe4+ $1 {[%emt 0:00:07]} 45. Kh2 {[%emt 0:01:00]} Qe2 $1 {[%emt 0:00:09]} 46. Kg1 {[%emt 0:02:15]} Qe1+ {[%emt 0:00:06]} 47. Kg2 {[%emt 0:00:01]} Qe4+ $1 {[%emt 0:00:08]} 48. Kh2 {[%emt 0:00:09] Weighted Error Value: White=0.07 (flawless) /Black=0.05 (flawless)} 1/2-1/2